bitfinex/quotes_SOLUSD_20241103
["timestamp","ask_amount","ask_price","bid_price","bid_amount"]
[1730674105143,0.3182517,162.88,162.87,8.1195501]
[1730674108629,0.3182517,162.88,162.85,15.3515]
[1730674108828,0.3182517,162.88,162.86,1.98132732]
[1730674109028,0.3182517,162.88,162.87,1.98132732]
[1730674110035,0.3182517,162.88,162.87,8.12112732]
[1730674112416,0.3182517,162.88,162.85,21.4921]
[1730674112612,0.3182517,162.88,162.87,1.98118684]
[1730674114238,0.3182517,162.88,162.87,8.12098684]
[1730674116621,0.3182517,162.88,162.87,1.98135202]
[1730674117922,0.3182517,162.88,162.87,8.12115202]
[1730674118529,0.3182517,162.88,162.87,8.12124855]
[1730674120154,0.3182517,162.88,162.87,1.98147823]
[1730674122444,0.3182517,162.88,162.87,8.12127823]
[1730674123241,0.3182517,162.88,162.87,8.12141456]
[1730674128150,0.3182517,162.88,162.87,1.98153368]
[1730674131551,0.3182517,162.88,162.86,21.4904]
[1730674131849,0.3182517,162.88,162.87,8.1215764]
[1730674134635,0.3182517,162.88,162.86,21.4908]
[1730674135649,0.3182517,162.88,162.87,1.98202772]
[1730674137452,0.3182517,162.88,162.87,8.12182772]
[1730674138653,0.3182517,162.88,162.87,1.98215437]
[1730674139255,0.3182517,162.88,162.87,1.98219777]
[1730674139945,10.64907642,162.88,162.87,1.98219777]
[1730674140149,0.3182517,162.88,162.86,6.1401]
[1730674140350,0.3182517,162.88,162.87,1.98225783]
[1730674140750,0.3182517,162.88,162.86,6.1401]
[1730674141055,0.3182517,162.88,162.87,1.98238189]
[1730674141669,0.3182517,162.88,162.87,1.98239918]
[1730674144462,0.3182517,162.88,162.87,8.12219918]
[1730674149146,0.3182517,162.88,162.87,1.98153289]
[1730674151545,0.3182517,162.88,162.87,8.12133289]
[1730674152865,0.3182517,162.88,162.86,15.3506]
[1730674153166,0.3182517,162.88,162.87,1.98101821]
[1730674154065,0.3182517,162.88,162.87,8.12081821]
[1730674160352,0.3182517,162.88,162.87,8.12004298]
[1730674163861,0.3182517,162.88,162.86,15.3506]
[1730674164063,0.3182517,162.88,162.87,1.97999879]
[1730674165849,0.3182517,162.88,162.87,8.11979879]
[1730674167548,0.3182517,162.88,162.87,6.1398]
[1730674167872,0.3182517,162.88,162.87,1.97981322]
[1730674169056,0.3182517,162.88,162.87,8.11961322]
[1730674171465,0.3182517,162.88,162.86,15.3506]
[1730674171670,0.3182517,162.88,162.87,1.97907187]
[1730674173362,0.3182517,162.88,162.87,8.11887187]
[1730674175458,0.3182517,162.88,162.87,18.44969659]
[1730674177958,0.3182517,162.88,162.87,8.11887187]
[1730674179863,0.3182517,162.88,162.87,18.44969659]
[1730674182695,0.3182517,162.88,162.87,18.44903905]
[1730674183588,0.3182517,162.88,162.87,42.35141305]
[1730674185198,0.3182517,162.88,162.87,40.37299872]
[1730674185490,0.3182517,162.88,162.87,42.35151966]
[1730674185673,0.3182517,162.88,162.87,42.45151966]
[1730674190700,0.3182517,162.88,162.87,42.55151966]
[1730674193401,0.3182517,162.88,162.87,42.55162694]
[1730674193703,0.3182517,162.88,162.87,42.45162694]
[1730674193998,0.3182517,162.88,162.87,42.55162694]
[1730674203503,5.17e-05,162.88,162.87,83.87492582]
[1730674204104,5.17e-05,162.88,162.87,100.51102582]
[1730674206009,5.17e-05,162.88,162.87,106.71122582]
[1730674206210,0.3182517,162.96,162.87,106.71122582]
[1730674206211,0.3182517,162.96,162.92,0.1]
[1730674206411,0.3182517,162.96,162.94,10.33082472]
[1730674206720,0.3182517,162.96,162.93,10.33082472]
[1730674207008,0.3182517,162.96,162.93,12.30924978]
[1730674207417,0.3182517,162.96,162.94,31.81102472]
[1730674209700,0.3182517,162.96,162.95,10.33082472]
[1730674210605,0.3182517,162.96,162.95,16.59311472]
[1730674213013,0.3182517,162.96,162.95,18.56919417]
[1730674213612,0.3182517,162.96,162.95,16.59311472]
[1730674213813,0.3182517,162.96,162.95,18.56896629]
[1730674215224,0.3182517,162.96,162.95,16.59311472]
[1730674215412,0.3182517,162.96,162.95,40.36999872]
[1730674215607,0.3182517,162.96,162.95,42.44536541]
[1730674215807,0.3182517,162.96,162.95,42.54536541]
[1730674218222,0.3182517,162.96,162.95,83.86866429]
[1730674220628,0.3182517,162.96,162.95,81.8932976]
[1730674220820,0.3182517,162.96,162.95,83.86440434]
[1730674222330,0.3182517,163.04,162.99,0.12549]
[1730674222510,0.3182517,163.04,163.03,16.46462472]
[1730674222705,0.3182517,163.04,163.03,10.33082472]
[1730674222904,0.3182517,163.04,163.02,21.4693]
[1730674223228,0.3182517,163.04,163.02,31.80012472]
[1730674223524,0.3182517,163.04,163.02,21.4693]
[1730674223724,0.3182517,163.04,163.02,31.80012472]
[1730674224631,0.3182517,163.04,163.03,10.33082472]
[1730674224801,0.3182517,163.04,163.02,25.66592472]
[1730674225326,0.3182517,163.04,163.03,10.33082472]
[1730674225704,0.3182517,163.04,163.03,16.46462472]
[1730674225899,0.3182517,163.04,163.03,6.1338]
[1730674226304,0.3182517,163.04,163.03,16.46462472]
[1730674230318,0.3182517,163.04,163.03,16.59011472]
[1730674232335,0.3182517,163.04,163.03,16.46462472]
[1730674234138,0.3182517,163.04,163.02,15.3351]
[1730674234316,0.3182517,163.04,163.02,21.469]
[1730674235826,0.3182517,163.04,163.02,10.33082472]
[1730674236715,0.3182517,163.04,163.01,10.33082472]
[1730674236924,0.3182517,163.04,163.02,21.4697]
[1730674237137,0.3182517,163.04,163.02,31.80052472]
[1730674237936,0.3182517,163.04,163.02,21.4697]
[1730674238144,0.3182517,163.04,163.03,10.33082472]
[1730674239242,0.3182517,163.04,163.02,15.3355]
[1730674239622,0.3182517,163.04,163.02,25.66632472]
[1730674240238,0.3182517,163.04,163.01,10.33082472]
[1730674240935,0.3182517,163.04,163.02,10.33082472]
[1730674241541,0.3182517,163.04,163.03,6.1338]
[1730674243463,0.3182517,163.04,163.02,15.3351]
[1730674245035,0.3182517,163.04,163.02,31.80012472]
[1730674252531,0.3182517,163.04,163.03,10.33082472]
[1730674253740,0.3182517,163.04,163.02,31.80012472]
[1730674254146,0.3182517,163.04,163.0,10.33082472]
[1730674254356,0.3182517,163.04,162.99,33.77519529]
[1730674254545,0.3182517,163.04,162.99,31.80412472]
[1730674255065,0.3182517,163.04,163.0,10.33082472]
[1730674255226,0.3182517,163.04,163.0,12.30263845]
[1730674255429,0.3182517,163.04,163.0,18.43723845]
[1730674255625,0.3182517,163.04,163.0,31.80282472]
[1730674256535,0.3182517,163.04,163.01,10.33082472]
[1730674257764,0.3182517,163.04,163.02,6.1342]
[1730674259254,0.3182517,163.04,163.0,21.4723]
[1730674259466,0.3182517,163.04,163.01,1.97474523]
[1730674260260,0.3182517,163.04,163.02,1.97474523]
[1730674260557,0.3182517,163.04,163.01,8.10914523]
[1730674260761,0.3182517,163.04,163.02,1.97474523]
[1730674261260,0.3182517,163.04,163.01,21.4708]
[1730674261560,0.3182517,163.04,163.02,1.97690601]
[1730674261734,0.3182517,163.04,163.01,21.4708]
[1730674262055,0.3182517,163.04,163.02,8.11105579]
[1730674262237,0.3182517,163.04,163.02,6.1341]
[1730674262636,0.3182517,163.04,163.03,1.9772863]
[1730674263747,0.3182517,163.04,163.03,8.1110863]
[1730674265653,0.3182517,163.04,163.03,1.9772863]
[1730674267059,0.3182517,163.04,163.03,18.44191102]
[1730674267236,0.3182517,163.04,163.03,8.1110863]
[1730674267643,0.3182517,163.04,163.03,6.1338]
[1730674267845,0.3182517,163.04,163.03,8.11242713]
[1730674269742,0.3182517,163.04,163.03,18.44325185]
[1730674270466,0.3182517,163.04,163.03,18.56874185]
[1730674277967,0.3182517,163.04,163.03,18.66874185]
[1730674278347,0.3182517,163.04,163.03,16.69011472]
[1730674278546,0.3182517,163.04,163.03,18.66735154]
[1730674285770,0.3182517,163.04,163.03,18.66787432]
[1730674285949,0.3182517,163.04,163.03,16.69011472]
[1730674286261,0.3182517,163.04,163.03,18.66780716]
[1730674289050,0.3182517,163.04,163.03,18.56780716]
[1730674289352,0.3182517,163.04,163.03,18.66780716]
[1730674289544,0.3182517,163.04,163.03,18.66711139]
[1730674292570,0.3182517,163.04,163.03,59.99041027]
[1730674293153,0.3182517,163.04,163.03,59.990011]
[1730674297853,0.3182517,163.04,163.03,18.66671212]
[1730674298677,0.3182517,163.04,163.03,18.44122212]
[1730674300475,0.3182517,163.04,163.03,16.46462472]
[1730674300681,0.3182517,163.04,163.03,18.4411617]
[1730674304377,0.3182517,163.04,163.03,18.44103662]
[1730674305583,0.3182517,163.04,163.03,18.44104894]
[1730674306085,0.3182517,163.04,163.03,20.41747319]
[1730674306269,0.3182517,163.04,163.03,18.44104897]
[1730674306979,0.3182517,163.04,163.03,18.56653897]
[1730674308381,0.3182517,163.04,163.03,18.56667979]
[1730674308880,0.3182517,163.04,163.03,16.59011472]
[1730674309085,0.3182517,163.04,163.03,18.56668005]
[1730674316365,0.3182517,163.04,163.03,18.56755249]
[1730674320367,0.3182517,163.04,163.03,16.59011472]
[1730674320568,0.3182517,163.04,163.03,18.56755266]
[1730674321672,0.3182517,163.04,163.03,18.44206266]
[1730674322881,0.3182517,163.04,163.03,18.44210144]
[1730674330723,0.3182517,163.04,163.03,18.44220503]
[1730674334503,0.3182517,163.04,163.03,18.44223923]
[1730674337495,0.3182517,163.04,163.03,19.67735861]
[1730674342003,0.3182517,163.04,163.03,19.67722257]
[1730674345805,0.3182517,163.04,163.03,19.67706063]
[1730674349511,0.3182517,163.04,163.03,19.67809995]
[1730674353298,0.3182517,163.04,163.03,17.6997441]
[1730674353498,0.3182517,163.04,163.03,19.67995754]
[1730674366726,0.3182517,163.04,163.03,19.67649859]
[1730674372611,0.3182517,163.04,163.03,17.6997441]
[1730674372804,0.3182517,163.04,163.03,19.67607987]
[1730674374431,0.3182517,163.04,163.03,19.67574677]
[1730674376317,0.3182517,163.04,163.03,17.6997441]
[1730674376522,0.3182517,163.04,163.03,19.67584748]
[1730674376825,0.3182517,163.04,163.03,19.67584797]
[1730674377330,0.3182517,163.04,163.03,19.67584314]
[1730674383135,0.3182517,163.04,163.03,19.67602703]
[1730674386941,0.3182517,163.04,163.03,19.67621416]
[1730674389221,0.3182517,163.04,163.03,19.67466404]
[1730674394346,0.3182517,163.04,163.03,19.67545514]
[1730674394522,0.3182517,163.04,163.03,19.67493878]
[1730674394716,0.3182517,163.04,163.03,17.69898508]
[1730674394921,16.2837517,163.12,163.04,0.1]
[1730674395222,16.2837517,163.12,163.1,11.56518508]
[1730674396922,16.2837517,163.12,163.1,17.69628508]
[1730674397323,0.3182517,163.12,163.1,17.69628508]
[1730674397651,0.3182517,163.12,163.11,11.56518508]
[1730674398943,0.3182517,163.12,163.11,17.69598508]
[1730674405855,0.3182517,163.12,163.11,19.67129101]
[1730674408735,0.3182517,163.12,163.11,17.69598508]
[1730674409140,0.3182517,163.12,163.11,19.66869496]
[1730674412643,0.3182517,163.12,163.11,19.66682278]
[1730674414257,0.3182517,163.12,163.11,19.66640222]
[1730674417957,0.3182517,163.12,163.11,65.92714254]
[1730674420060,0.3182517,163.12,163.11,65.9254516]
[1730674421557,0.3182517,163.12,163.11,66.0509416]
[1730674423875,0.3182517,163.12,163.11,64.0822154]
[1730674424169,0.3182517,163.12,163.11,66.05028139]
[1730674425770,0.3182517,163.12,163.11,89.82716539]
[1730674428158,0.3182517,163.12,163.11,13.53325107]
[1730674429148,0.3182517,163.12,163.11,11.56518508]
[1730674429577,0.3182517,163.12,163.11,13.53233529]
[1730674431483,0.3182517,163.12,163.11,11.56518508]
[1730674431659,0.3182517,163.12,163.11,13.53250449]
[1730674433782,0.3182517,163.12,163.11,19.66330449]
[1730674434072,0.3182517,163.12,163.11,13.53250449]
[1730674435180,0.3182517,163.12,163.11,19.66330449]
[1730674438981,0.3182517,163.12,163.11,13.53250449]
[1730674440980,0.3182517,163.12,163.11,19.66330449]
[1730674441569,0.3182517,163.12,163.11,19.66494834]
[1730674451186,0.3182517,163.12,163.11,13.53414834]
[1730674452371,6.4486517,163.12,163.11,1.96896326]
[1730674452776,26.4486517,163.12,163.11,1.96896326]
[1730674453289,26.4486517,163.12,163.08,11.56518508]
[1730674453505,26.4486517,163.12,163.11,1.97426746]
[1730674453677,26.4486517,163.12,163.08,11.56518508]
[1730674453866,26.4486517,163.12,163.09,1.9745112]
[1730674454065,26.4486517,163.12,163.08,11.56518508]
[1730674454066,26.4486517,163.12,163.1,1.9745112]
[1730674454284,26.4486517,163.12,163.08,11.56518508]
[1730674454586,26.4486517,163.12,163.09,1.97436398]
[1730674454783,26.4486517,163.12,163.08,11.56518508]
[1730674454984,26.4486517,163.12,163.09,1.97456478]
[1730674455181,26.4486517,163.12,163.08,11.56518508]
[1730674455384,26.4486517,163.12,163.09,1.97371045]
[1730674455677,26.4486517,163.12,163.08,11.56518508]
[1730674459877,26.4486517,163.12,163.09,11.56518508]
[1730674460393,26.4486517,163.12,163.08,11.56518508]
[1730674461802,26.4486517,163.12,163.09,11.56518508]
[1730674462896,26.4486517,163.12,163.08,11.56518508]
[1730674463807,26.4486517,163.12,163.07,13.53578811]
[1730674463974,26.4486517,163.12,163.07,11.56518508]
[1730674464179,26.4486517,163.12,163.08,11.56518508]
[1730674465181,20.0,163.11,163.08,11.56518508]
[1730674465583,20.0,163.11,163.07,11.56518508]
[1730674465786,20.0,163.11,163.06,13.53404283]
[1730674466091,20.0,163.11,163.07,11.56518508]
[1730674466890,6.4486517,163.12,163.07,11.56518508]
[1730674468913,20.0,163.11,163.07,11.56518508]
[1730674469202,20.0,163.11,163.06,11.56518508]
[1730674469705,20.0,163.11,163.07,11.56518508]
[1730674469901,20.0,163.11,163.06,11.56518508]
[1730674470808,11.93985296,163.12,163.1,11.56518508]
[1730674473807,5.80945296,163.12,163.1,11.56518508]
[1730674474001,0.3182517,163.12,163.11,11.56518508]
[1730674497518,0.3182517,163.12,163.11,13.53770022]
[1730674499629,0.3182517,163.12,163.11,11.56518508]
[1730674499828,0.3182517,163.12,163.11,13.53802845]
[1730674500225,0.3182517,163.12,163.11,11.56518508]
[1730674500418,6.4486517,163.12,163.11,11.56518508]
[1730674500609,6.4486517,163.12,163.11,1.97286647]
[1730674500813,6.4486517,163.12,163.11,13.53805155]
[1730674501324,6.4486517,163.12,163.11,1.97286647]
[1730674501526,6.4486517,163.12,163.11,1.9727962]
[1730674502220,6.4486517,163.12,163.11,1.97277805]
[1730674502522,6.4486517,163.12,163.1,11.56518508]
[1730674515233,6.4486517,163.12,163.11,1.97352766]
[1730674517452,6.4486517,163.12,163.1,11.56518508]
[1730674517745,6.4486517,163.12,163.11,1.97395191]
[1730674520344,6.4486517,163.12,163.1,11.56518508]
[1730674520522,6.4486517,163.12,163.11,1.97412542]
[1730674523850,6.4486517,163.12,163.11,1.97421861]
[1730674527547,6.4486517,163.12,163.1,11.56518508]
[1730674527753,6.4486517,163.12,163.11,1.97434723]
[1730674531446,0.3182517,163.12,163.1,11.56518508]
[1730674531661,0.3182517,163.12,163.11,1.97456102]
[1730674533048,6.5741417,163.12,163.07,11.56518508]
[1730674533243,6.5741417,163.12,163.06,15.8023]
[1730674533244,6.5741417,163.12,163.08,13.5396514]
[1730674533427,6.5741417,163.12,163.09,1.97446632]
[1730674533754,6.5741417,163.12,163.1,1.97446632]
[1730674533947,6.5741417,163.12,163.08,11.56518508]
[1730674534146,6.5741417,163.12,163.09,1.97421254]
[1730674534354,6.5741417,163.12,163.1,1.97421254]
[1730674534538,6.5741417,163.12,163.08,11.56518508]
[1730674534743,6.5741417,163.12,163.09,1.97410627]
[1730674534942,6.5741417,163.12,163.1,1.97410627]
[1730674535141,6.5741417,163.12,163.08,11.56518508]
[1730674535340,6.5741417,163.12,163.09,1.97412128]
[1730674535552,6.5741417,163.12,163.1,1.97412128]
[1730674535744,6.5741417,163.12,163.08,11.56518508]
[1730674536043,6.5741417,163.12,163.09,1.97370855]
[1730674536242,6.5741417,163.12,163.1,1.97370855]
[1730674536456,6.5741417,163.12,163.09,11.56518508]
[1730674536637,6.5741417,163.12,163.1,1.97361158]
[1730674536837,6.5741417,163.12,163.09,11.56518508]
[1730674537038,6.5741417,163.12,163.1,1.97362417]
[1730674537241,6.5741417,163.12,163.09,11.56518508]
[1730674537556,6.5741417,163.12,163.1,1.97354188]
[1730674537759,6.5741417,163.12,163.09,11.56518508]
[1730674537937,6.5741417,163.12,163.1,1.97353004]
[1730674538255,6.5741417,163.12,163.09,11.56518508]
[1730674538558,6.5741417,163.12,163.1,1.97347741]
[1730674538742,6.5741417,163.12,163.09,11.56518508]
[1730674538941,6.5741417,163.12,163.1,1.97347573]
[1730674539155,6.5741417,163.12,163.09,11.56518508]
[1730674539330,6.5741417,163.12,163.1,1.97347373]
[1730674539534,6.5741417,163.12,163.09,11.56518508]
[1730674539742,6.5741417,163.12,163.1,1.97363873]
[1730674540047,6.4486517,163.12,163.09,11.56518508]
[1730674540353,6.4486517,163.12,163.1,13.53887883]
[1730674540660,6.4486517,163.12,163.09,11.56518508]
[1730674540847,6.4486517,163.12,163.1,1.97368602]
[1730674541151,6.4486517,163.12,163.09,11.56518508]
[1730674541359,6.4486517,163.12,163.1,1.97367065]
[1730674541536,6.4486517,163.12,163.09,11.56518508]
[1730674541738,6.4486517,163.12,163.1,1.97363946]
[1730674542066,6.4486517,163.12,163.09,11.56518508]
[1730674542067,6.4486517,163.12,163.08,11.56518508]
[1730674542259,6.4486517,163.12,163.09,13.53851483]
[1730674542557,6.4486517,163.12,163.1,1.97332975]
[1730674542758,6.4486517,163.12,163.09,11.56518508]
[1730674542967,6.4486517,163.12,163.1,1.97313135]
[1730674543139,6.4486517,163.12,163.09,11.56518508]
[1730674543342,6.4486517,163.12,163.1,1.9731158]
[1730674543543,6.4486517,163.12,163.09,11.56518508]
[1730674543758,6.4486517,163.12,163.1,1.9730826]
[1730674543941,6.4486517,163.12,163.09,11.56518508]
[1730674544140,6.4486517,163.12,163.1,1.97295755]
[1730674544363,6.4486517,163.12,163.09,11.56518508]
[1730674544563,6.4486517,163.12,163.1,1.97297746]
[1730674544748,6.4486517,163.12,163.08,11.56518508]
[1730674544951,6.4486517,163.12,163.09,1.97297439]
[1730674545259,6.4486517,163.12,163.1,1.97297439]
[1730674545443,6.4486517,163.12,163.08,11.56518508]
[1730674545636,6.4486517,163.12,163.09,1.97300512]
[1730674545943,6.4486517,163.12,163.1,1.97300512]
[1730674546246,6.4486517,163.12,163.08,11.56518508]
[1730674546445,6.4486517,163.12,163.09,1.97299363]
[1730674546653,6.4486517,163.12,163.08,11.56518508]
[1730674546946,6.4486517,163.12,163.09,1.97299822]
[1730674547143,6.4486517,163.12,163.1,1.97299822]
[1730674547348,6.4486517,163.12,163.08,11.56518508]
[1730674547540,6.4486517,163.12,163.09,1.97300189]
[1730674547747,6.4486517,163.12,163.1,1.97300189]
[1730674548065,6.4486517,163.12,163.08,11.56518508]
[1730674548360,6.4486517,163.12,163.09,1.97302199]
[1730674548562,6.4486517,163.12,163.1,1.97302199]
[1730674548767,6.4486517,163.12,163.08,11.56518508]
[1730674549065,6.4486517,163.12,163.09,1.973013]
[1730674549261,0.12549,163.11,163.1,1.973013]
[1730674549557,6.25629,163.11,163.1,1.973013]
[1730674549765,26.25629,163.11,163.1,1.973013]
[1730674560652,26.25629,163.11,163.1,1.97323639]
[1730674561065,26.25629,163.11,163.07,11.56518508]
[1730674561272,26.25629,163.11,163.08,1.97349916]
[1730674561454,26.25629,163.11,163.07,11.56518508]
[1730674561769,26.25629,163.11,163.08,1.97315516]
[1730674561971,26.25629,163.11,163.07,11.56518508]
[1730674562164,26.25629,163.11,163.08,1.97319975]
[1730674562469,26.25629,163.11,163.07,11.56518508]
[1730674562670,26.25629,163.11,163.08,1.97288099]
[1730674562869,26.25629,163.11,163.07,11.56518508]
[1730674563076,26.25629,163.11,163.08,1.97280441]
[1730674563256,26.25629,163.11,163.07,11.56518508]
[1730674563455,26.25629,163.11,163.08,1.97270962]
[1730674563654,26.25629,163.11,163.07,11.56518508]
[1730674563962,26.25629,163.11,163.08,1.97268957]
[1730674564166,26.25629,163.11,163.07,11.56518508]
[1730674564380,26.25629,163.11,163.08,1.97257041]
[1730674564556,26.25629,163.11,163.07,11.56518508]
[1730674564760,26.25629,163.11,163.08,1.97249893]
[1730674565054,26.25629,163.11,163.07,11.56518508]
[1730674565254,26.25629,163.11,163.08,1.97214693]
[1730674565473,26.25629,163.11,163.07,11.56518508]
[1730674565786,26.25629,163.11,163.08,1.97193553]
[1730674565951,26.25629,163.11,163.07,11.56518508]
[1730674566274,26.25629,163.11,163.08,1.97194188]
[1730674566573,26.25629,163.11,163.07,11.56518508]
[1730674566973,26.25629,163.11,163.08,1.97183972]
[1730674567175,26.25629,163.11,163.07,11.56518508]
[1730674567362,26.25629,163.11,163.08,1.97170394]
[1730674567562,26.25629,163.11,163.07,11.56518508]
[1730674567764,26.25629,163.11,163.08,1.97169448]
[1730674568064,26.25629,163.11,163.07,11.56518508]
[1730674568373,26.25629,163.11,163.08,1.97159558]
[1730674568575,26.25629,163.11,163.07,11.56518508]
[1730674568784,26.25629,163.11,163.08,1.97154621]
[1730674568965,26.25629,163.11,163.07,11.56518508]
[1730674569149,26.25629,163.11,163.08,1.97158216]
[1730674569476,26.25629,163.11,163.07,11.56518508]
[1730674569677,26.25629,163.11,163.08,1.97153891]
[1730674569879,26.25629,163.11,163.07,11.56518508]
[1730674570178,26.25629,163.11,163.08,1.97153905]
[1730674570368,26.25629,163.11,163.07,11.56518508]
[1730674570569,26.25629,163.11,163.08,1.97148524]
[1730674570778,26.25629,163.11,163.07,11.56518508]
[1730674570971,26.25629,163.11,163.08,1.97148519]
[1730674571154,26.25629,163.11,163.07,11.56518508]
[1730674573157,26.25629,163.11,163.06,11.56518508]
[1730674573378,26.25629,163.11,163.07,1.97135455]
[1730674573680,26.25629,163.11,163.06,11.56518508]
[1730674573867,26.25629,163.11,163.07,1.9713845]
[1730674574177,26.25629,163.11,163.06,11.56518508]
[1730674574353,26.25629,163.11,163.07,1.97131633]
[1730674574555,26.25629,163.11,163.07,11.56518508]
[1730674577164,26.25629,163.11,163.06,11.56518508]
[1730674577366,26.25629,163.11,163.07,11.56518508]
[1730674583767,26.35629,163.11,163.07,11.56518508]
[1730674584076,26.35629,163.11,163.06,11.56518508]
[1730674584277,26.35629,163.11,163.07,1.97106407]
[1730674584477,26.35629,163.11,163.06,11.56518508]
[1730674584675,26.35629,163.11,163.07,1.97104012]
[1730674584866,26.35629,163.11,163.06,11.56518508]
[1730674585067,26.35629,163.11,163.07,1.97105768]
[1730674585268,26.35629,163.11,163.06,11.56518508]
[1730674585467,26.35629,163.11,163.07,1.9710207]
[1730674585680,26.35629,163.11,163.06,11.56518508]
[1730674585874,26.35629,163.11,163.07,1.97104282]
[1730674586074,26.35629,163.11,163.06,11.56518508]
[1730674586391,26.35629,163.11,163.07,1.97097671]
[1730674586688,26.35629,163.11,163.06,11.56518508]
[1730674586891,26.35629,163.11,163.07,1.9710333]
[1730674587191,26.35629,163.11,163.06,11.56518508]
[1730674587396,26.35629,163.11,163.07,1.97120889]
[1730674587687,26.35629,163.11,163.06,11.56518508]
[1730674587876,26.35629,163.11,163.07,1.97126648]
[1730674588076,26.35629,163.11,163.06,11.56518508]
[1730674588277,26.35629,163.11,163.07,13.53644053]
[1730674588489,26.35629,163.11,163.07,11.56518508]
[1730674590892,26.35629,163.11,163.06,11.56518508]
[1730674591073,26.35629,163.11,163.07,1.971344]
[1730674591273,26.35629,163.11,163.06,11.56518508]
[1730674591582,26.35629,163.11,163.07,1.97126427]
[1730674591894,26.35629,163.11,163.06,11.56518508]
[1730674592073,26.35629,163.11,163.07,1.97125972]
[1730674592276,26.35629,163.11,163.06,11.56518508]
[1730674592573,26.35629,163.11,163.07,1.97124946]
[1730674592774,26.35629,163.11,163.06,11.56518508]
[1730674592976,26.35629,163.11,163.07,1.97122573]
[1730674593177,26.35629,163.11,163.06,11.56518508]
[1730674593378,26.35629,163.11,163.07,1.97123111]
[1730674593571,26.35629,163.11,163.06,11.56518508]
[1730674593784,26.35629,163.11,163.07,1.97130996]
[1730674593983,26.35629,163.11,163.06,11.56518508]
[1730674594293,26.35629,163.11,163.07,1.97130886]
[1730674594484,26.35629,163.11,163.05,11.56518508]
[1730674594684,26.35629,163.11,163.06,1.97139626]
[1730674594886,26.35629,163.11,163.07,1.97139626]
[1730674595087,26.35629,163.11,163.05,11.56518508]
[1730674595590,26.35629,163.11,163.06,1.97152153]
[1730674595792,26.35629,163.11,163.05,11.56518508]
[1730674595994,26.35629,163.11,163.06,1.97151238]
[1730674596192,26.35629,163.11,163.05,11.56518508]
[1730674596395,26.35629,163.11,163.06,1.9714152]
[1730674596589,26.35629,163.11,163.05,11.56518508]
[1730674596783,26.35629,163.11,163.06,1.97150056]
[1730674597088,0.22549,163.06,162.96,6.98545105]
[1730674597299,0.12549,163.03,162.99,1.97147191]
[1730674597477,31.69067508,163.03,163.0,1.97147191]
[1730674597676,31.69067508,163.03,162.97,26.90508508]
[1730674597889,31.69067508,163.03,162.98,1.97214021]
[1730674598088,31.69067508,163.03,162.99,1.97214021]
[1730674598267,31.69067508,163.03,162.98,1.97214021]
[1730674598472,6.1342,163.02,162.97,26.90508508]
[1730674598783,4.56069594,163.01,162.98,1.9700663]
[1730674599082,4.56063012,163.0,162.97,11.56518508]
[1730674599388,4.56063012,162.99,162.96,13.533617]
[1730674599595,4.56063012,162.98,162.96,11.56518508]
[1730674599896,4.56063012,162.97,162.96,11.56518508]
[1730674600085,4.56063012,162.97,162.96,13.53361524]
[1730674600394,4.56063012,162.97,162.96,1.96843016]
[1730674600577,4.56063012,162.97,162.95,13.53361524]
[1730674600778,6.1353,162.99,162.95,13.53361524]
[1730674600983,4.55126913,162.98,162.95,13.53361524]
[1730674601180,31.56518508,163.01,162.95,13.53361524]
[1730674601493,10.80845491,163.0,162.95,13.53361524]
[1730674601704,4.54806491,162.99,162.95,13.53361524]
[1730674601878,4.54806491,162.98,162.95,13.53361524]
[1730674602196,6.26039,163.0,162.95,13.53361524]
[1730674602400,4.54599704,162.99,162.95,13.53361524]
[1730674602697,4.54599704,162.98,162.95,1.96843016]
[1730674602890,6.1354,162.99,162.95,1.96843016]
[1730674603097,4.54598368,162.98,162.95,1.96843016]
[1730674603295,6.1354,162.99,162.94,33.04518508]
[1730674603602,6.26179,162.97,162.92,34.06948508]
[1730674603772,0.12549,162.95,162.92,22.5043]
[1730674604402,0.12549,162.96,162.92,22.5043]
[1730674604699,4.54026779,162.95,162.92,22.5043]
[1730674604888,6.1368,162.95,162.92,22.5043]
[1730674605278,11.56518508,162.95,162.92,22.5043]
[1730674605482,11.56518508,162.96,162.92,22.5043]
[1730674605699,11.56518508,162.95,162.92,22.5043]
[1730674605885,11.56518508,162.95,162.92,16.4703]
[1730674607004,17.70208508,162.95,162.92,16.4703]
[1730674608282,17.70208508,162.95,162.9,21.4846]
[1730674609805,17.70208508,162.95,162.89,11.56518508]
[1730674610005,11.69067508,162.94,162.88,39.17558508]
[1730674611290,6.1376,162.93,162.88,39.17558508]
[1730674611493,17.70278508,162.93,162.88,21.4711]
[1730674611993,11.56518508,162.92,162.88,21.4711]
[1730674613580,17.70328508,162.92,162.88,21.4711]
[1730674614604,17.70328508,162.92,162.88,15.1968]
[1730674615086,17.70328508,162.92,162.84,37.2967517]
[1730674615087,11.56518508,162.9,162.84,39.49513678]